[Event "*** Titled Tuesday Blitz"]
[Site "Chess.com"]
[Date "2021.03.09"]
[Round "7"]
[White "gusmaster2262"]
[Black "Romadk"]
[Result "1-0"]
[WhiteElo "2167"]
[BlackElo "2323"]
[TimeControl "180+1"]
[EndTime "11:20:12 PST"]
[Termination "gusmaster2262 won by resignation"]

1. e4 {[%clk 0:03:00.9]} 1... Nf6 {[%clk 0:02:55.9]} 2. e5 {[%clk 0:02:59.7]}
2... Nd5 {[%clk 0:02:55.5]} 3. d4 {[%clk 0:03:00.3]} 3... d6 {[%clk 0:02:55.5]}
4. Nf3 {[%clk 0:03:00.9]} 4... Bg4 {[%clk 0:02:55]} 5. Be2 {[%clk 0:02:57.1]}
5... c6 {[%clk 0:02:54]} 6. O-O {[%clk 0:02:56.1]} 6... Bxf3 {[%clk 0:02:53.2]}
7. Bxf3 {[%clk 0:02:55.2]} 7... dxe5 {[%clk 0:02:54.1]} 8. dxe5 {[%clk
0:02:54.1]} 8... e6 {[%clk 0:02:55]} 9. Nd2 {[%clk 0:02:46.5]} 9... Nd7 {[%clk
0:02:53]} 10. Re1 {[%clk 0:02:45.5]} 10... Bc5 {[%clk 0:02:17.3]} 11. Ne4 {[%clk
0:02:33]} 11... Bb4 {[%clk 0:01:52.3]} 12. c3 {[%clk 0:02:28.1]} 12... Be7
{[%clk 0:01:51.1]} 13. c4 {[%clk 0:02:20.7]} 13... N5b6 {[%clk 0:01:50.2]} 14.
Nd6+ {[%clk 0:02:16.8]} 14... Kf8 {[%clk 0:01:47.4]} 15. a4 {[%clk 0:02:11.7]}
15... a5 {[%clk 0:01:44.6]} 16. Qd4 {[%clk 0:01:59.3]} 16... Nxe5 {[%clk
0:01:32.4]} 17. Qxe5 {[%clk 0:01:29.6]} 17... Qxd6 {[%clk 0:01:31.5]} 18. Qe2
{[%clk 0:01:20]} 18... Qc5 {[%clk 0:01:27.9]} 19. b3 {[%clk 0:01:16.2]} 19...
Bf6 {[%clk 0:01:27.5]} 20. Ba3 {[%clk 0:01:12.2]} 20... Qxa3 {[%clk 0:01:24.3]}
21. Rxa3 {[%clk 0:01:11.6]} 21... Nd7 {[%clk 0:01:22.8]} 22. Rd1 {[%clk
0:01:09.5]} 22... Ne5 {[%clk 0:01:22.6]} 23. Ra2 {[%clk 0:01:08.4]} 23... Ng6
{[%clk 0:01:20.4]} 24. Rad2 {[%clk 0:01:06.7]} 24... h6 {[%clk 0:01:18.7]} 25.
g3 {[%clk 0:01:06]} 25... Ne5 {[%clk 0:01:17.6]} 26. Bg2 {[%clk 0:01:05.5]}
26... g5 {[%clk 0:01:16.8]} 27. Qe3 {[%clk 0:01:02.2]} 27... Kg7 {[%clk
0:01:13.8]} 28. h3 {[%clk 0:00:59]} 28... Rab8 {[%clk 0:01:09.3]} 29. Qb6 {[%clk
0:00:56]} 29... Rhc8 {[%clk 0:01:07.6]} 30. Qxa5 {[%clk 0:00:52.9]} 30... b6
{[%clk 0:01:07.6]} 31. Qb4 {[%clk 0:00:51.3]} 31... c5 {[%clk 0:01:07.3]} 32.
Qa3 {[%clk 0:00:51.1]} 32... Nc6 {[%clk 0:01:07.1]} 33. Bxc6 {[%clk 0:00:49]}
33... Rxc6 {[%clk 0:01:08]} 34. Rd7 {[%clk 0:00:48]} 34... Rc7 {[%clk
0:01:07.9]} 35. Rxc7 {[%clk 0:00:46.8]} 1-0

[Event "*** Titled Tuesday Blitz"]
[Site "Chess.com"]
[Date "2021.03.09"]
[Round "7"]
[White "Korchmar_Vasiliy"]
[Black "TimofeevAr"]
[Result "0-1"]
[WhiteElo "2648"]
[BlackElo "2882"]
[TimeControl "180+1"]
[EndTime "11:20:16 PST"]
[Termination "TimofeevAr won on time"]

1. d4 {[%clk 0:03:00.9]} 1... Nf6 {[%clk 0:02:59.2]} 2. Nf3 {[%clk 0:03:01.3]}
2... b6 {[%clk 0:02:59.4]} 3. Bg5 {[%clk 0:02:57.9]} 3... Bb7 {[%clk 0:02:59.1]}
4. Nbd2 {[%clk 0:02:57.3]} 4... e6 {[%clk 0:02:55.4]} 5. e3 {[%clk 0:02:57.1]}
5... Be7 {[%clk 0:02:52.7]} 6. Bd3 {[%clk 0:02:56.8]} 6... O-O {[%clk
0:02:52.2]} 7. O-O {[%clk 0:02:56.9]} 7... d6 {[%clk 0:02:50.9]} 8. a4 {[%clk
0:02:48.2]} 8... a5 {[%clk 0:02:50.1]} 9. c3 {[%clk 0:02:48.1]} 9... Nbd7 {[%clk
0:02:49.5]} 10. e4 {[%clk 0:02:37.9]} 10... h6 {[%clk 0:02:48.7]} 11. Bh4 {[%clk
0:02:20.3]} 11... Nh5 {[%clk 0:02:48.6]} 12. Bg3 {[%clk 0:02:17.4]} 12... Nxg3
{[%clk 0:02:45.8]} 13. hxg3 {[%clk 0:02:18.3]} 13... Bf6 {[%clk 0:02:35]} 14.
Qe2 {[%clk 0:02:16.9]} 14... g6 {[%clk 0:02:34.7]} 15. Rad1 {[%clk 0:01:47]}
15... Bg7 {[%clk 0:02:34.3]} 16. e5 {[%clk 0:01:46]} 16... dxe5 {[%clk
0:02:31.6]} 17. dxe5 {[%clk 0:01:36.7]} 17... Nc5 {[%clk 0:02:31.4]} 18. Bb5
{[%clk 0:01:22.5]} 18... c6 {[%clk 0:02:22.9]} 19. Ne4 {[%clk 0:01:13]} 19...
Qe7 {[%clk 0:02:21.8]} 20. Nxc5 {[%clk 0:00:52.2]} 20... Qxc5 {[%clk 0:02:21.7]}
21. Bd3 {[%clk 0:00:45.8]} 21... b5 {[%clk 0:02:17.1]} 22. axb5 {[%clk
0:00:40.8]} 22... cxb5 {[%clk 0:02:17.5]} 23. Bxb5 {[%clk 0:00:41]} 23... Bxf3
{[%clk 0:02:17.4]} 24. gxf3 {[%clk 0:00:41.9]} 24... Bxe5 {[%clk 0:02:17]} 25.
Kg2 {[%clk 0:00:32.9]} 25... Bg7 {[%clk 0:02:13]} 26. Rd7 {[%clk 0:00:30.8]}
26... Rab8 {[%clk 0:02:12]} 27. c4 {[%clk 0:00:22]} 27... Qb4 {[%clk 0:02:08.5]}
28. Rb1 {[%clk 0:00:12.2]} 28... Rfd8 {[%clk 0:01:59.5]} 29. Qd3 {[%clk
0:00:03.7]} 29... Rxd7 {[%clk 0:01:56.2]} 30. Qxd7 {[%clk 0:00:04.6]} 30... Bf6
{[%clk 0:01:56.2]} 31. Qa7 {[%clk 0:00:03.6]} 31... Rd8 {[%clk 0:01:54.7]} 32.
Ra1 {[%clk 0:00:03.7]} 32... Rd2 {[%clk 0:01:47.5]} 33. Qxa5 {[%clk 0:00:02]}
33... Qxb2 {[%clk 0:01:44.7]} 34. Qa8+ {[%clk 0:00:01.6]} 34... Rd8 {[%clk
0:01:40.5]} 0-1

[Event "*** Titled Tuesday Blitz"]
[Site "Chess.com"]
[Date "2021.03.09"]
[Round "7"]
[White "boasovietica"]
[Black "Iskusnyh"]
[Result "0-1"]
[WhiteElo "2437"]
[BlackElo "2600"]
[TimeControl "180+1"]
[EndTime "11:20:19 PST"]
[Termination "Iskusnyh won on time"]

1. e4 {[%clk 0:03:00.9]} 1... e6 {[%clk 0:02:59.4]} 2. d4 {[%clk 0:02:57]} 2...
d5 {[%clk 0:02:59.4]} 3. Nd2 {[%clk 0:02:56.6]} 3... c5 {[%clk 0:02:57.5]} 4.
exd5 {[%clk 0:02:53.1]} 4... exd5 {[%clk 0:02:56.9]} 5. Ngf3 {[%clk 0:02:49.4]}
5... Nc6 {[%clk 0:02:56.7]} 6. Bb5 {[%clk 0:02:45.3]} 6... cxd4 {[%clk
0:02:56.6]} 7. O-O {[%clk 0:02:44.3]} 7... Bd6 {[%clk 0:02:55.7]} 8. Nxd4 {[%clk
0:02:42.7]} 8... Ne7 {[%clk 0:02:55.2]} 9. c4 {[%clk 0:02:23.7]} 9... O-O {[%clk
0:02:49.9]} 10. Bxc6 {[%clk 0:02:02.5]} 10... bxc6 {[%clk 0:02:43]} 11. cxd5
{[%clk 0:01:54.5]} 11... cxd5 {[%clk 0:02:38]} 12. N2f3 {[%clk 0:01:52.5]} 12...
Bg4 {[%clk 0:02:27.4]} 13. b3 {[%clk 0:01:43.1]} 13... Qd7 {[%clk 0:02:19.7]}
14. Bb2 {[%clk 0:01:41.3]} 14... Ng6 {[%clk 0:02:12.6]} 15. Re1 {[%clk
0:01:20.6]} 15... Rfe8 {[%clk 0:02:06.6]} 16. Qd2 {[%clk 0:01:17.6]} 16... Nf4
{[%clk 0:01:46.4]} 17. Rxe8+ {[%clk 0:01:09.4]} 17... Rxe8 {[%clk 0:01:44.3]}
18. Re1 {[%clk 0:01:09.6]} 18... Re4 {[%clk 0:01:28.1]} 19. Rc1 {[%clk
0:00:30.3]} 19... Bxf3 {[%clk 0:01:19]} 20. gxf3 {[%clk 0:00:17.4]} 20... Rxd4
{[%clk 0:01:11.7]} 21. Bxd4 {[%clk 0:00:09.6]} 21... Qh3 {[%clk 0:01:11.5]} 22.
Rc8+ {[%clk 0:00:02.4]} 22... Qxc8 {[%clk 0:01:10.9]} 23. Qc2 {[%clk 0:00:01.6]}
23... Qxc2 {[%clk 0:01:10.2]} 0-1

[Event "*** Titled Tuesday Blitz"]
[Site "Chess.com"]
[Date "2021.03.09"]
[Round "7"]
[White "FlySooHigh"]
[Black "Omk124"]
[Result "1-0"]
[WhiteElo "2672"]
[BlackElo "2452"]
[TimeControl "180+1"]
[EndTime "11:20:23 PST"]
[Termination "FlySooHigh won by resignation"]

1. e4 {[%clk 0:03:00.9]} 1... c5 {[%clk 0:02:58.9]} 2. Nf3 {[%clk 0:03:00.2]}
2... d6 {[%clk 0:02:58.4]} 3. Nc3 {[%clk 0:02:59.8]} 3... Nf6 {[%clk 0:02:57.9]}
4. e5 {[%clk 0:02:59.7]} 4... dxe5 {[%clk 0:02:57.7]} 5. Nxe5 {[%clk 0:03:00.6]}
5... Nbd7 {[%clk 0:02:57.5]} 6. d4 {[%clk 0:03:00.6]} 6... cxd4 {[%clk 0:02:56]}
7. Qxd4 {[%clk 0:02:59.8]} 7... Nxe5 {[%clk 0:02:49.5]} 8. Qxe5 {[%clk
0:03:00.7]} 8... e6 {[%clk 0:02:50]} 9. Bg5 {[%clk 0:02:56.7]} 9... Be7 {[%clk
0:02:48.2]} 10. Bb5+ {[%clk 0:02:55.6]} 10... Bd7 {[%clk 0:02:46.9]} 11. O-O-O
{[%clk 0:02:55.1]} 11... O-O {[%clk 0:01:57.6]} 12. Bxf6 {[%clk 0:02:43]} 12...
Bxf6 {[%clk 0:01:57.9]} 13. Qe3 {[%clk 0:02:43.3]} 13... Bxc3 {[%clk 0:01:19.7]}
14. bxc3 {[%clk 0:02:44.2]} 14... Bxb5 {[%clk 0:01:16.6]} 15. Rxd8 {[%clk
0:02:45.1]} 15... Rfxd8 {[%clk 0:01:16.2]} 16. Rd1 {[%clk 0:02:44.1]} 16... a6
{[%clk 0:01:16.7]} 17. Rxd8+ {[%clk 0:02:43.3]} 17... Rxd8 {[%clk 0:01:14.4]}
18. Qb6 {[%clk 0:02:40.1]} 18... Rd7 {[%clk 0:01:14.9]} 19. Qc5 {[%clk 0:02:29]}
19... Bc6 {[%clk 0:01:10.8]} 20. f3 {[%clk 0:02:28.8]} 20... g6 {[%clk
0:01:10.7]} 21. Qe5 {[%clk 0:02:24.6]} 21... Rd5 {[%clk 0:01:08.9]} 22. Qf6
{[%clk 0:02:23.2]} 22... Rf5 {[%clk 0:01:03.7]} 23. Qd8+ {[%clk 0:02:22.9]}
23... Kg7 {[%clk 0:01:04]} 24. c4 {[%clk 0:02:21]} 24... Rf4 {[%clk 0:00:58.5]}
25. Qd3 {[%clk 0:02:16.4]} 25... Rf5 {[%clk 0:00:53.3]} 26. Kb2 {[%clk
0:02:14.8]} 26... h5 {[%clk 0:00:51.7]} 27. Qd4+ {[%clk 0:02:13]} 27... Kh7
{[%clk 0:00:48.8]} 28. Kb3 {[%clk 0:02:11.4]} 28... Rg5 {[%clk 0:00:48.8]} 29.
Qd2 {[%clk 0:02:10.5]} 29... Rf5 {[%clk 0:00:47.4]} 30. Qe3 {[%clk 0:02:07.5]}
30... Ra5 {[%clk 0:00:45.9]} 31. g4 {[%clk 0:01:59.9]} 31... hxg4 {[%clk
0:00:44.2]} 32. fxg4 {[%clk 0:02:00.8]} 32... b5 {[%clk 0:00:17.9]} 33. Qb6
{[%clk 0:01:45.7]} 33... bxc4+ {[%clk 0:00:17.2]} 34. Kc3 {[%clk 0:01:46.3]}
34... Ra3+ {[%clk 0:00:15.8]} 35. Kb2 {[%clk 0:01:45.7]} 35... Rh3 {[%clk
0:00:07.2]} 36. Qxc6 {[%clk 0:01:45.8]} 36... c3+ {[%clk 0:00:07.3]} 37. Kb3
{[%clk 0:01:44.8]} 37... Rxh2 {[%clk 0:00:07.8]} 38. Qxa6 {[%clk 0:01:43.7]}
38... Rg2 {[%clk 0:00:08.2]} 39. Qb7 {[%clk 0:01:40.7]} 39... Kg7 {[%clk
0:00:06.8]} 40. Qxg2 {[%clk 0:01:40.3]} 1-0

[Event "*** Titled Tuesday Blitz"]
[Site "Chess.com"]
[Date "2021.03.09"]
[Round "7"]
[White "gisela_roque"]
[Black "ApoIogiA"]
[Result "0-1"]
[WhiteElo "1748"]
[BlackElo "2190"]
[TimeControl "180+1"]
[EndTime "11:20:24 PST"]
[Termination "ApoIogiA won by resignation"]

1. c4 {[%clk 0:03:00.9]} 1... Nf6 {[%clk 0:02:59.7]} 2. Nf3 {[%clk 0:03:00]}
2... g6 {[%clk 0:02:59.9]} 3. g3 {[%clk 0:02:59.6]} 3... Bg7 {[%clk 0:03:00.5]}
4. Bg2 {[%clk 0:03:00]} 4... O-O {[%clk 0:03:01.4]} 5. O-O {[%clk 0:03:00.2]}
5... d5 {[%clk 0:03:01.9]} 6. b3 {[%clk 0:02:59.8]} 6... dxc4 {[%clk 0:02:57.1]}
7. bxc4 {[%clk 0:02:59.5]} 7... Ne4 {[%clk 0:02:56.1]} 8. d4 {[%clk 0:02:58.2]}
8... c5 {[%clk 0:02:54.9]} 9. e3 {[%clk 0:02:54.1]} 9... Nc6 {[%clk 0:02:53.3]}
10. Bb2 {[%clk 0:02:50.1]} 10... Bg4 {[%clk 0:02:52.3]} 11. Qc2 {[%clk
0:02:07.6]} 11... Bxf3 {[%clk 0:02:46.9]} 12. Bxf3 {[%clk 0:02:07]} 12... Ng5
{[%clk 0:02:47.5]} 13. Bxc6 {[%clk 0:02:05.6]} 13... bxc6 {[%clk 0:02:47.1]} 14.
dxc5 {[%clk 0:02:04.4]} 14... Bxb2 {[%clk 0:02:40.7]} 15. Qxb2 {[%clk
0:02:05.3]} 15... Qd3 {[%clk 0:02:40.5]} 16. Qc3 {[%clk 0:01:59]} 16... Qe4
{[%clk 0:02:37.7]} 17. h4 {[%clk 0:01:36.2]} 17... Nf3+ {[%clk 0:02:34.1]} 18.
Kg2 {[%clk 0:01:32.2]} 18... Ne1+ {[%clk 0:02:32.4]} 19. Kh3 {[%clk 0:01:29.2]}
19... Qg2+ {[%clk 0:02:26.6]} 20. Kg4 {[%clk 0:01:29.2]} 20... h5+ {[%clk
0:01:14.1]} 21. Kg5 {[%clk 0:01:24.3]} 21... Kh7 {[%clk 0:00:49.5]} 22. f4
{[%clk 0:00:18.6]} 22... f6+ {[%clk 0:00:45.1]} 0-1

[Event "*** Titled Tuesday Blitz"]
[Site "Chess.com"]
[Date "2021.03.09"]
[Round "7"]
[White "NateSolon"]
[Black "Tooweak2slow03"]
[Result "0-1"]
[WhiteElo "2600"]
[BlackElo "2774"]
[TimeControl "180+1"]
[EndTime "11:20:26 PST"]
[Termination "Tooweak2slow03 won by resignation"]

1. d4 {[%clk 0:03:00.9]} 1... g6 {[%clk 0:02:55.8]} 2. e4 {[%clk 0:03:00.4]}
2... Nf6 {[%clk 0:02:54.8]} 3. e5 {[%clk 0:02:58.6]} 3... Nh5 {[%clk 0:02:53.5]}
4. Nc3 {[%clk 0:02:56.9]} 4... d6 {[%clk 0:02:52.4]} 5. f4 {[%clk 0:02:56.5]}
5... Bh6 {[%clk 0:02:41.5]} 6. g3 {[%clk 0:02:51.1]} 6... c5 {[%clk 0:02:36.2]}
7. Be3 {[%clk 0:02:39.3]} 7... cxd4 {[%clk 0:02:31.3]} 8. Qxd4 {[%clk
0:02:37.5]} 8... Nc6 {[%clk 0:02:29.5]} 9. Bb5 {[%clk 0:02:02]} 9... O-O {[%clk
0:02:27.2]} 10. Bxc6 {[%clk 0:02:01.1]} 10... bxc6 {[%clk 0:02:28.1]} 11. O-O-O
{[%clk 0:01:58.1]} 11... c5 {[%clk 0:02:24.5]} 12. Qe4 {[%clk 0:01:51.4]} 12...
Rb8 {[%clk 0:02:23.7]} 13. exd6 {[%clk 0:01:26.6]} 13... exd6 {[%clk 0:02:22.1]}
14. Nge2 {[%clk 0:01:23.2]} 14... Bb7 {[%clk 0:02:14.7]} 15. Qc4 {[%clk
0:01:08.9]} 15... Bxh1 {[%clk 0:02:08.7]} 16. Rxh1 {[%clk 0:01:09.8]} 16... Re8
{[%clk 0:02:05.7]} 17. Bf2 {[%clk 0:01:05.4]} 17... Rb4 {[%clk 0:01:59.9]} 18.
Qd3 {[%clk 0:01:02.1]} 18... Nf6 {[%clk 0:01:57.6]} 19. Rd1 {[%clk 0:01:00.7]}
19... Qb6 {[%clk 0:01:56.8]} 20. b3 {[%clk 0:01:00.6]} 20... Bg7 {[%clk
0:01:54.1]} 21. Qxd6 {[%clk 0:00:50.5]} 21... Qxd6 {[%clk 0:01:55]} 22. Rxd6
{[%clk 0:00:50.8]} 22... Ne4 {[%clk 0:01:55.2]} 23. Nxe4 {[%clk 0:00:50.9]}
23... Rbxe4 {[%clk 0:01:50]} 24. Ng1 {[%clk 0:00:51.2]} 24... Bc3 {[%clk
0:01:33.8]} 25. Nf3 {[%clk 0:00:46.2]} 25... Bb4 {[%clk 0:01:31.2]} 26. Rd3
{[%clk 0:00:34.8]} 26... c4 {[%clk 0:01:28.3]} 27. bxc4 {[%clk 0:00:34.3]} 27...
Rxc4 {[%clk 0:01:26.9]} 28. Ne5 {[%clk 0:00:31.9]} 28... Rc3 {[%clk 0:01:21.9]}
29. Rd7 {[%clk 0:00:30.6]} 29... Rec8 {[%clk 0:01:19.5]} 30. Nxf7 {[%clk
0:00:20]} 30... Rxc2+ {[%clk 0:01:18.2]} 31. Kd1 {[%clk 0:00:20.5]} 31... Rxf2
{[%clk 0:01:08.6]} 32. Nh6+ {[%clk 0:00:20.6]} 32... Kf8 {[%clk 0:01:09.3]} 33.
Rxh7 {[%clk 0:00:17.5]} 33... Rd2+ {[%clk 0:01:07.2]} 0-1

[Event "*** Titled Tuesday Blitz"]
[Site "Chess.com"]
[Date "2021.03.09"]
[Round "7"]
[White "bylavochka"]
[Black "Piotrek1979"]
[Result "1-0"]
[WhiteElo "2227"]
[BlackElo "2353"]
[TimeControl "180+1"]
[EndTime "11:20:26 PST"]
[Termination "bylavochka won by checkmate"]

1. e4 {[%clk 0:03:00.9]} 1... c5 {[%clk 0:02:59.2]} 2. Nf3 {[%clk 0:03:01]} 2...
Nc6 {[%clk 0:02:58.9]} 3. d4 {[%clk 0:03:01.9]} 3... cxd4 {[%clk 0:02:59.1]} 4.
Nxd4 {[%clk 0:03:02.8]} 4... g6 {[%clk 0:02:58.9]} 5. c4 {[%clk 0:03:02.5]} 5...
Nf6 {[%clk 0:02:57.7]} 6. Nc3 {[%clk 0:03:02.7]} 6... Nxd4 {[%clk 0:02:58.2]} 7.
Qxd4 {[%clk 0:03:02.7]} 7... d6 {[%clk 0:02:58.6]} 8. Be3 {[%clk 0:03:02.4]}
8... Bg7 {[%clk 0:02:59]} 9. Qd2 {[%clk 0:03:02.4]} 9... O-O {[%clk 0:02:59.6]}
10. Be2 {[%clk 0:03:02.4]} 10... Be6 {[%clk 0:03:00]} 11. Rc1 {[%clk 0:02:59.5]}
11... Qa5 {[%clk 0:02:59.9]} 12. b3 {[%clk 0:02:59.2]} 12... Rfc8 {[%clk
0:02:59.9]} 13. O-O {[%clk 0:02:59.4]} 13... a6 {[%clk 0:03:00]} 14. f4 {[%clk
0:02:59.5]} 14... b5 {[%clk 0:02:57.2]} 15. f5 {[%clk 0:02:58.8]} 15... Bd7
{[%clk 0:02:56.8]} 16. fxg6 {[%clk 0:02:28.5]} 16... hxg6 {[%clk 0:02:54.4]} 17.
e5 {[%clk 0:02:14.5]} 17... dxe5 {[%clk 0:02:49.4]} 18. Rxf6 {[%clk 0:01:55.1]}
18... Bxf6 {[%clk 0:02:23.5]} 19. Qxd7 {[%clk 0:01:53.1]} 19... Rd8 {[%clk
0:01:51.2]} 20. Qh3 {[%clk 0:01:50.5]} 20... b4 {[%clk 0:01:35.3]} 21. Na4
{[%clk 0:01:38.7]} 21... e4 {[%clk 0:01:32.9]} 22. c5 {[%clk 0:01:33.3]} 22...
Bd4 {[%clk 0:01:29.7]} 23. Bc4 {[%clk 0:01:16.3]} 23... Kg7 {[%clk 0:01:15.6]}
24. Qh6+ {[%clk 0:01:07.4]} 24... Kg8 {[%clk 0:01:10.2]} 25. Qxg6+ {[%clk
0:01:02.1]} 25... Kh8 {[%clk 0:01:09.7]} 26. Qh6+ {[%clk 0:01:01.9]} 26... Kg8
{[%clk 0:01:07.7]} 27. Bxd4 {[%clk 0:00:52.2]} 27... Rxd4 {[%clk 0:01:03.1]} 28.
Qg6+ {[%clk 0:00:47.9]} 28... Kh8 {[%clk 0:01:01.8]} 29. Bxf7 {[%clk 0:00:47.7]}
29... Rd6 {[%clk 0:00:43.6]} 30. cxd6 {[%clk 0:00:46.5]} 30... Qe5 {[%clk
0:00:37.4]} 31. Qh6# {[%clk 0:00:43.3]} 1-0

[Event "*** Titled Tuesday Blitz"]
[Site "Chess.com"]
[Date "2021.03.09"]
[Round "7"]
[White "OMGCovid-19"]
[Black "VladimirBugayev"]
[Result "0-1"]
[WhiteElo "2075"]
[BlackElo "2265"]
[TimeControl "180+1"]
[EndTime "11:20:29 PST"]
[Termination "VladimirBugayev won by resignation"]

1. e4 {[%clk 0:03:00.9]} 1... c6 {[%clk 0:02:58.8]} 2. d4 {[%clk 0:03:00.2]}
2... d5 {[%clk 0:02:58.8]} 3. Nc3 {[%clk 0:02:59]} 3... dxe4 {[%clk 0:02:58]} 4.
Nxe4 {[%clk 0:02:59.6]} 4... Nf6 {[%clk 0:02:58.7]} 5. Nxf6+ {[%clk 0:02:59.2]}
5... exf6 {[%clk 0:02:59.3]} 6. Nf3 {[%clk 0:02:57.9]} 6... Bd6 {[%clk
0:02:59.1]} 7. Bd3 {[%clk 0:02:57.9]} 7... O-O {[%clk 0:02:58.9]} 8. O-O {[%clk
0:02:57.3]} 8... Re8 {[%clk 0:02:56.9]} 9. h3 {[%clk 0:02:49.6]} 9... Be6 {[%clk
0:02:53.7]} 10. c3 {[%clk 0:02:46.3]} 10... Nd7 {[%clk 0:02:53.9]} 11. Qc2
{[%clk 0:02:45.2]} 11... Nf8 {[%clk 0:02:53.1]} 12. Re1 {[%clk 0:02:40.2]} 12...
Rc8 {[%clk 0:02:52.7]} 13. Nd2 {[%clk 0:02:38.6]} 13... b5 {[%clk 0:02:41.7]}
14. Ne4 {[%clk 0:02:38.2]} 14... Bb8 {[%clk 0:02:41.3]} 15. Qe2 {[%clk
0:02:32.9]} 15... Qc7 {[%clk 0:02:37.7]} 16. g3 {[%clk 0:02:17.5]} 16... Bxh3
{[%clk 0:02:36.9]} 17. Bf4 {[%clk 0:02:16.7]} 17... Qd7 {[%clk 0:02:17.6]} 18.
Bxb8 {[%clk 0:02:07.8]} 18... f5 {[%clk 0:02:01.8]} 19. Nf6+ {[%clk 0:00:28.2]}
19... gxf6 {[%clk 0:01:58.4]} 20. Qh5 {[%clk 0:00:28.2]} 20... Bg4 {[%clk
0:01:56.8]} 21. Qh6 {[%clk 0:00:19.4]} 21... Rxb8 {[%clk 0:01:50.9]} 22. Qxf6
{[%clk 0:00:19.4]} 22... Re6 {[%clk 0:01:10.1]} 23. Qh4 {[%clk 0:00:13.1]} 23...
Rbe8 {[%clk 0:01:07.3]} 24. Rxe6 {[%clk 0:00:10.3]} 24... Qxe6 {[%clk
0:01:02.4]} 25. f3 {[%clk 0:00:09.2]} 25... Qe3+ {[%clk 0:00:57.4]} 26. Kh2
{[%clk 0:00:07.2]} 26... Qf2+ {[%clk 0:00:56.7]} 0-1

[Event "*** Titled Tuesday Blitz"]
[Site "Chess.com"]
[Date "2021.03.09"]
[Round "7"]
[White "kuli4ik"]
[Black "PavelShkapenko"]
[Result "1-0"]
[WhiteElo "2901"]
[BlackElo "2708"]
[TimeControl "180+1"]
[EndTime "11:20:38 PST"]
[Termination "kuli4ik won by resignation"]

1. Nf3 {[%clk 0:03:00.9]} 1... Nf6 {[%clk 0:02:58.6]} 2. g3 {[%clk 0:03:00.8]}
2... d5 {[%clk 0:02:58]} 3. Bg2 {[%clk 0:03:00.4]} 3... c6 {[%clk 0:02:58.5]} 4.
O-O {[%clk 0:03:00.5]} 4... Bg4 {[%clk 0:02:58.5]} 5. Ne5 {[%clk 0:03:00.6]}
5... Bh5 {[%clk 0:02:57]} 6. d4 {[%clk 0:03:00.7]} 6... Nbd7 {[%clk 0:02:56.9]}
7. c4 {[%clk 0:03:00.9]} 7... e6 {[%clk 0:02:57.1]} 8. Nc3 {[%clk 0:03:00.7]}
8... Be7 {[%clk 0:02:56.7]} 9. Qb3 {[%clk 0:03:00.3]} 9... Qb6 {[%clk 0:02:56]}
10. Nxd7 {[%clk 0:02:57.1]} 10... Nxd7 {[%clk 0:02:52.9]} 11. e4 {[%clk
0:02:56.9]} 11... dxe4 {[%clk 0:02:48.5]} 12. Nxe4 {[%clk 0:02:57]} 12... O-O
{[%clk 0:02:48.7]} 13. Be3 {[%clk 0:02:56.5]} 13... Nf6 {[%clk 0:02:41.2]} 14.
Nc5 {[%clk 0:02:55.1]} 14... Bxc5 {[%clk 0:02:37.8]} 15. dxc5 {[%clk 0:02:54.3]}
15... Qxb3 {[%clk 0:02:38.3]} 16. axb3 {[%clk 0:02:55.1]} 16... a6 {[%clk
0:02:38.7]} 17. h3 {[%clk 0:02:54.3]} 17... Rad8 {[%clk 0:02:35.8]} 18. b4
{[%clk 0:02:39.5]} 18... Bg6 {[%clk 0:02:27.8]} 19. Rfc1 {[%clk 0:02:33.4]}
19... Be4 {[%clk 0:02:25.9]} 20. Bf1 {[%clk 0:02:29.9]} 20... Bd3 {[%clk
0:02:21.8]} 21. Bg2 {[%clk 0:02:30.2]} 21... Be4 {[%clk 0:02:22]} 22. f3 {[%clk
0:02:30.5]} 22... Bd3 {[%clk 0:02:21.9]} 23. Kf2 {[%clk 0:02:21.9]} 23... e5
{[%clk 0:02:18.3]} 24. Rc3 {[%clk 0:02:13.5]} 24... Rd7 {[%clk 0:02:09.9]} 25.
g4 {[%clk 0:02:11]} 25... Rfd8 {[%clk 0:02:05.6]} 26. Rd1 {[%clk 0:02:06.9]}
26... Ne8 {[%clk 0:01:45.9]} 27. f4 {[%clk 0:02:03.2]} 27... e4 {[%clk
0:01:34.4]} 28. f5 {[%clk 0:02:00.7]} 28... h6 {[%clk 0:01:23]} 29. Bf4 {[%clk
0:02:00.2]} 29... Kf8 {[%clk 0:01:16.4]} 30. Ke3 {[%clk 0:01:59.8]} 30... Re7
{[%clk 0:01:01.9]} 31. Rd2 {[%clk 0:01:56.2]} 31... Rdd7 {[%clk 0:00:53.7]} 32.
Rc1 {[%clk 0:01:55.7]} 32... Nf6 {[%clk 0:00:45.8]} 33. Bd6 {[%clk 0:01:51.4]}
33... Ke8 {[%clk 0:00:45.8]} 34. Bxe7 {[%clk 0:01:51.1]} 34... Kxe7 {[%clk
0:00:46.1]} 35. Bf1 {[%clk 0:01:47.4]} 35... Bxf1 {[%clk 0:00:42.8]} 36. Rxf1
{[%clk 0:01:44.4]} 36... Rxd2 {[%clk 0:00:39.2]} 37. Kxd2 {[%clk 0:01:45.3]}
37... g5 {[%clk 0:00:34.2]} 38. Ke3 {[%clk 0:01:39.6]} 38... h5 {[%clk
0:00:34.5]} 39. gxh5 {[%clk 0:01:25.9]} 39... Nxh5 {[%clk 0:00:34.6]} 40. Rg1
{[%clk 0:01:26]} 40... Nf4 {[%clk 0:00:21.7]} 41. Rxg5 {[%clk 0:01:21.1]} 41...
Nxh3 {[%clk 0:00:19.5]} 42. Rg3 {[%clk 0:01:19.9]} 1-0